bitfinex/quotes_SOLUSD_20251013
["timestamp","ask_amount","ask_price","bid_price","bid_amount"]
[1760333912305,0.1011249,194.3,194.29,0.2]
[1760333912503,0.10898972,194.32,194.29,96.32712682]
[1760333912710,0.10898972,194.32,194.31,9.86018154]
[1760333913099,0.10898972,194.32,194.31,10.58018154]
[1760333915006,0.10898972,194.32,194.31,15.72659706]
[1760333915724,0.10914435,194.33,194.32,10.87647521]
[1760333915900,0.09298308,194.34,194.32,21.45665675]
[1760333916097,0.09298308,194.34,194.33,10.58018154]
[1760333916917,0.09298308,194.34,194.33,15.7260674]
[1760333919028,0.09298308,194.34,194.33,5.86588586]
[1760333919525,0.09298308,194.34,194.32,0.72]
[1760333920112,0.65,194.33,194.29,0.2]
[1760333921518,0.09298308,194.34,194.3,10.58018154]
[1760333921823,0.09298308,194.34,194.32,9.86018154]
[1760333922020,0.09298308,194.34,194.33,10.58018154]
[1760333923647,0.09298308,194.34,194.33,15.7260674]
[1760333924128,0.09298308,194.34,194.33,26.60254261]
[1760333928038,1e-08,194.34,194.33,47.40254261]
[1760333929321,0.09789781,194.35,194.34,10.87647521]
[1760333929641,0.09789781,194.35,194.34,21.44665675]
[1760333929840,0.09789781,194.35,194.34,11.58647521]
[1760333930334,0.09789781,194.35,194.34,10.57018154]
[1760333930540,0.09789781,194.35,194.34,21.44665675]
[1760333931528,0.09789781,194.35,194.34,25.88227782]
[1760333932128,0.09789781,194.35,194.34,15.00580261]
[1760333932336,0.09789781,194.35,194.34,25.88227782]
[1760333932540,0.09789781,194.35,194.29,34.57719235]
[1760333932849,0.76789781,194.35,194.31,9.86018154]
[1760333933527,0.76789781,194.35,194.32,15.00624125]
[1760333933723,0.67,194.34,194.29,0.2]
[1760333934129,0.67,194.34,194.29,10.06018154]
[1760333934325,0.67,194.33,194.29,0.2]
[1760333934525,0.67,194.32,194.29,0.2]
[1760333935527,18.10678257,194.35,194.29,0.2]
[1760333935728,0.67,194.31,194.29,0.2]
[1760333936123,0.67,194.33,194.29,0.2]
[1760333936353,0.67,194.32,194.29,0.2]
[1760333936853,0.67,194.32,194.29,10.06018154]
[1760333937036,0.67,194.32,194.29,0.2]
[1760333937230,5.14563766,194.34,194.29,0.2]
[1760333937430,0.67,194.33,194.29,0.2]
[1760333937750,0.67,194.32,194.29,0.2]
[1760333938738,0.67,194.31,194.29,0.2]
[1760333938930,0.67,194.3,194.29,0.2]
[1760333939334,0.67,194.33,194.29,0.2]
[1760333939643,0.67,194.32,194.29,0.2]
[1760333939854,0.67,194.31,194.29,10.06018154]
[1760333940151,0.67,194.31,194.29,0.2]
[1760333940356,0.67,194.3,194.29,0.2]
[1760333940674,0.67,194.34,194.29,10.77018154]
[1760333940834,0.67,194.33,194.3,9.86018154]
[1760333941763,0.67,194.32,194.29,10.06018154]
[1760333941950,0.67,194.31,194.29,0.2]
[1760333942362,0.67,194.3,194.29,0.2]
[1760333942738,0.67,194.32,194.29,0.2]
[1760333943044,0.67,194.31,194.29,0.2]
[1760333943652,0.67,194.3,194.29,0.2]
[1760333944238,5.14562107,194.34,194.29,0.2]
[1760333944455,20.8,194.33,194.3,9.86018154]
[1760333944655,0.67,194.33,194.3,9.86018154]
[1760333946373,0.09789781,194.35,194.32,9.86018154]
[1760333946557,0.09789781,194.35,194.33,9.86018154]
[1760333946867,0.09789781,194.35,194.32,9.86018154]
[1760333947072,0.09789781,194.35,194.32,10.57018154]
[1760333947570,0.09789781,194.35,194.34,9.86018154]
[1760333947869,0.09789781,194.35,194.34,15.00580261]
[1760333948052,0.09789781,194.35,194.34,15.71580261]
[1760333949374,0.11239402,194.35,194.34,15.71580261]
[1760333949680,0.09997127,194.36,194.34,36.51580261]
[1760333949859,0.10732568,194.38,194.37,31.67647521]
[1760333950050,0.10440314,194.39,194.37,41.53665675]
[1760333950250,0.10440314,194.39,194.38,21.44665675]
[1760333950459,0.10440314,194.39,194.38,235.94665675]
[1760333951264,0.10440314,194.39,194.38,21.44665675]
[1760333951570,0.10440314,194.39,194.37,9.86018154]
[1760333951760,0.10440314,194.39,194.38,5.14456219]
[1760333952377,0.10440314,194.39,194.37,9.86018154]
[1760333952879,0.10440314,194.39,194.38,9.86018154]
[1760333953381,0.81440314,194.39,194.33,9.86018154]
[1760333953589,0.71,194.38,194.3,10.87647521]
[1760333953876,0.71,194.37,194.3,16.02291705]
[1760333954249,0.71,194.37,194.3,25.88309859]
[1760333954450,0.71,194.37,194.3,16.02291705]
[1760333954685,5.8548669,194.37,194.3,16.02291705]
[1760333956188,5.8548669,194.37,194.3,230.52291705]
[1760333957269,20.8,194.34,194.29,0.2]
[1760333957454,0.71,194.33,194.29,0.2]
[1760333957655,0.71,194.32,194.29,0.2]
[1760333958269,20.8,194.34,194.29,5.34674661]
[1760333958790,20.8,194.34,194.29,6.01674661]
[1760333959274,21.51,194.37,194.31,5.14641552]
[1760333960385,26.65508361,194.37,194.31,5.14641552]
[1760333961078,0.71,194.36,194.3,80.4]
[1760333961282,0.71,194.35,194.3,80.4]
[1760333961472,0.71,194.34,194.3,80.4]
[1760333962172,25.94508361,194.37,194.3,80.4]
[1760333962378,0.71,194.36,194.3,80.4]
[1760333962578,0.71,194.36,194.29,134.3]
[1760333962579,0.71,194.35,194.29,0.2]
[1760333964791,5.14562107,194.34,194.29,0.2]
[1760333964984,0.71,194.33,194.29,0.2]
[1760333965172,0.71,194.32,194.29,0.2]
[1760333965695,5.14562107,194.34,194.29,0.2]
[1760333965998,0.71,194.33,194.29,0.2]
[1760333966293,0.71,194.32,194.29,0.2]
[1760333966496,0.71,194.31,194.29,0.2]
[1760333966988,0.71,194.3,194.29,0.2]
[1760333967614,0.71,194.3,194.28,0.2]
[1760333968192,5.14694528,194.29,194.28,0.2]
[1760333968395,5.85694528,194.29,194.28,0.2]
[1760333969393,5.95899124,194.29,194.28,0.2]
[1760333976095,20.8,194.27,194.26,0.2]
[1760333976595,32.38647521,194.27,194.26,0.2]
[1760333977598,37.53395037,194.27,194.26,0.2]
[1760333984803,37.53395037,194.27,194.26,1e-08]
[1760333985598,25.94747516,194.27,194.26,1e-08]
[1760333986191,26.65747516,194.27,194.26,1e-08]
[1760333986899,25.94747516,194.27,194.26,1e-08]
[1760333987895,65.26353887,194.27,194.19,0.2]
[1760333989382,0.10916321,194.2,194.19,0.2]
[1760333989586,0.10916321,194.2,194.19,0.9]
[1760333990805,0.10916321,194.2,194.19,0.2]
[1760333991108,0.10916321,194.2,194.19,0.9]
[1760333999009,0.10916321,194.2,194.19,86.44959575]
[1760333999212,0.10916321,194.2,194.19,89.10050953]
[1760333999604,0.10916321,194.2,194.19,86.44959575]
[1760334002625,0.10916321,194.2,194.19,89.10050953]
[1760334002810,0.10916321,194.2,194.19,99.97698474]
[1760334003911,0.11059911,194.21,194.2,91.167312]
[1760334004223,0.11059911,194.21,194.2,94.51822578]
[1760334004404,1e-08,194.24,194.21,10.87647521]
[1760334004602,1e-08,194.28,194.27,31.67647521]
[1760334004804,0.71,194.4,194.28,10.87647521]
[1760334005106,0.71,194.4,194.34,2.65091378]
[1760334005306,0.71,194.4,194.34,3.35091378]
[1760334005532,0.71,194.42,194.36,2.65091378]
[1760334005822,0.71,194.44,194.38,2.65091378]
[1760334006007,21.51,194.43,194.34,2.65091378]
[1760334006232,0.71,194.42,194.35,0.7]
[1760334006415,0.71,194.42,194.35,3.35091378]
[1760334006720,0.71,194.42,194.36,5.14509158]
[1760334006908,5.85353694,194.42,194.36,5.14509158]
[1760334007698,5.14353694,194.42,194.34,5.14550936]
[1760334007898,0.71,194.41,194.34,7.79642314]
[1760334008119,0.71,194.41,194.34,5.14550936]
[1760334008520,5.14403292,194.4,194.33,0.7]
[1760334008700,20.8,194.37,194.3,2.65091378]
[1760334009021,21.51,194.37,194.31,3.35091378]
[1760334009319,20.8,194.37,194.32,3.35091378]
[1760334009495,0.11151886,194.34,194.33,3.35091378]
[1760334010496,0.11151886,194.34,194.33,19.37327485]
[1760334012902,0.82151886,194.34,194.31,214.39083679]
[1760334013430,0.11151886,194.34,194.29,5.14693289]
[1760334013603,0.80151886,194.34,194.29,5.85693289]
[1760334013795,0.69,194.33,194.26,5.14773926]
[1760334013998,0.69,194.33,194.26,7.79865304]
[1760334014211,0.69,194.33,194.26,8.50865304]
[1760334014415,0.69,194.33,194.24,23.74671422]
[1760334014416,0.69,194.32,194.24,0.71]
[1760334014618,5.83630141,194.32,194.25,5.14800514]
[1760334014824,0.69,194.31,194.25,5.14800514]
[1760334015033,0.69,194.31,194.22,44.54847603]
[1760334015034,0.69,194.3,194.22,3.36091378]
[1760334015222,0.69,194.29,194.22,3.36091378]
[1760334015428,0.69,194.28,194.22,3.36091378]
[1760334015746,0.69,194.28,194.22,0.71]
[1760334015951,0.69,194.28,194.2,5.85907784]
[1760334016128,0.69,194.27,194.21,2.65091378]
[1760334016448,0.69,194.27,194.2,8.50999162]
[1760334017027,5.83774014,194.26,194.19,0.2]
[1760334017226,5.83774014,194.26,194.19,0.91]
[1760334017421,0.69,194.26,194.2,2.65091378]
[1760334018792,0.69,194.26,194.21,2.65091378]
[1760334019342,0.69,194.26,194.22,2.65091378]
[1760334019520,20.8,194.31,194.22,2.65091378]
[1760334019521,5.14668039,194.3,194.22,2.65091378]
[1760334019727,0.69,194.29,194.22,2.65091378]
[1760334019950,0.69,194.28,194.22,2.65091378]
[1760334020729,5.83739964,194.28,194.22,2.65091378]
[1760334021038,5.83739964,194.28,194.22,83.05091378]
[1760334021740,5.83739964,194.28,194.22,88.90957247]
[1760334022124,5.14691877,194.3,194.24,2.65091378]
[1760334022323,5.14691877,194.3,194.25,2.65091378]
[1760334022526,5.83691877,194.3,194.25,3.36091378]
[1760334022729,5.83691877,194.3,194.25,0.71]
[1760334023454,0.69,194.29,194.25,0.71]
[1760334023664,0.69,194.28,194.22,80.4]
[1760334023960,5.14691877,194.3,189.97,91.5565941]
[1760334023961,21.49,194.27,194.19,0.2]
[1760334024324,21.49,194.27,194.19,2.85091378]
[1760334024524,0.69,194.26,194.19,2.85091378]
[1760334024755,0.69,194.25,194.19,0.2]
[1760334025452,25.94827018,194.24,194.19,0.2]
[1760334025642,0.69,194.23,194.19,0.2]
[1760334026833,20.8,194.24,194.2,0.71]
[1760334027037,0.69,194.25,194.2,4.85152253]
[1760334027232,20.8,194.26,194.21,4.85152253]
[1760334027547,0.69,194.26,194.21,10.00057194]
[1760334027749,21.49,194.26,194.21,10.00057194]
[1760334027958,5.14588586,194.33,194.22,0.71]
[1760334028255,20.8,194.29,194.21,4.14152253]
[1760334028440,0.69,194.28,194.21,4.14152253]
[1760334028767,0.69,194.27,194.21,4.14152253]
[1760334029355,5.837585,194.27,194.21,9.29051349]
[1760334029541,0.10838544,194.22,194.21,5.14899096]
[1760334029742,0.10838544,194.22,194.21,10.00051349]
[1760334030472,0.10838544,194.22,194.2,4.14152253]
[1760334031034,0.10838544,194.22,194.19,4.34152253]
[1760334031965,0.10838544,194.22,194.19,0.2]
[1760334032170,0.67,194.21,194.19,0.2]
[1760334034164,0.10838544,194.22,194.2,4.14152253]
[1760334034379,0.10838544,194.22,194.19,4.34152253]
[1760334034552,0.10838544,194.22,194.19,0.2]
[1760334034870,0.77838544,194.22,194.19,0.2]
[1760334035241,0.10838544,194.22,194.19,0.2]
[1760334037962,0.10838544,194.22,194.19,80.6]
[1760334039446,0.10838544,194.22,194.2,0.68]
[1760334039962,0.10838544,194.22,194.19,80.6]
[1760334040266,0.10838544,194.22,194.19,85.42152253]
[1760334041865,0.10838544,194.22,194.21,4.14152253]
[1760334042069,0.10838544,194.22,194.19,9.49097427]
[1760334042250,0.10838544,194.22,194.21,4.14152253]
[1760334042645,0.10838544,194.22,194.2,4.82152253]
[1760334042963,0.10838544,194.22,194.2,0.68]
[1760334043170,0.10838544,194.22,194.2,4.82152253]
[1760334044366,0.10838544,194.22,194.2,9.97070334]
[1760334044965,0.10838544,194.22,194.2,5.82918081]
[1760334045352,0.10838544,194.22,194.19,0.2]
[1760334045559,0.78838544,194.22,194.19,0.2]
[1760334046972,0.68,194.21,194.19,0.2]
[1760334047347,0.68,194.2,194.19,0.2]
[1760334047544,0.10838544,194.22,194.19,0.2]
[1760334047850,5.9372295,194.22,194.19,0.2]
[1760334048570,5.2572295,194.22,194.19,0.2]
[1760334048787,0.68,194.21,194.19,0.2]
[1760334049468,0.09907184,194.2,194.19,0.2]
[1760334050164,0.77907184,194.2,194.19,0.2]
[1760334052372,0.09907184,194.2,194.19,0.2]
[1760334052850,0.09907184,194.2,194.19,0.9]
[1760334053647,0.09907184,194.2,194.19,0.2]
[1760334053867,0.09907184,194.2,194.19,10.19111828]
[1760334055174,0.09907184,194.2,194.19,21.06759349]
[1760334055882,0.11137892,194.21,194.2,10.87647521]
[1760334056057,0.11137892,194.21,194.2,19.85952027]
[1760334056258,0.11213612,194.22,194.2,19.85952027]
[1760334056486,0.11213612,194.22,194.21,15.71799774]
[1760334057175,0.11213612,194.22,194.21,20.86706318]
[1760334057376,1e-08,194.22,194.21,20.86706318]
[1760334058556,0.11259707,194.29,194.24,31.67647521]
[1760334058756,0.11259707,194.29,194.25,10.87647521]
[1760334058974,0.11259707,194.29,194.27,10.87647521]
[1760334059175,0.11259707,194.29,194.27,20.1654729]
[1760334059364,0.11259707,194.29,194.27,20.8654729]
[1760334060173,0.11259707,194.29,194.27,16.72395037]
[1760334060360,0.11259707,194.29,194.27,20.1654729]
[1760334060560,0.11259707,194.29,194.27,20.8654729]
[1760334063815,0.11259707,194.29,194.27,20.3654729]
[1760334063984,0.68,194.38,194.35,5.14535631]
[1760334064281,0.68,194.37,194.34,4.14152253]
[1760334064580,0.68,194.36,194.33,4.14152253]
[1760334064782,0.68,194.38,194.34,4.14152253]
[1760334064968,0.68,194.37,194.34,4.14152253]
[1760334065164,0.68,194.36,194.34,4.14152253]
[1760334065859,0.68,194.35,194.32,5.14614699]
[1760334066056,0.68,194.34,194.32,80.28740292]
[1760334066262,0.68,194.33,194.27,96.3110959]
[1760334066489,0.68,194.32,194.27,80.28740292]
[1760334066662,0.68,194.31,194.27,80.28740292]
[1760334066863,0.68,194.3,194.27,80.28740292]
[1760334067080,0.68,194.29,194.27,80.28740292]
[1760334067275,0.68,194.28,194.27,80.28740292]
[1760334067580,0.68,194.28,194.24,4.14152253]
[1760334067886,0.68,194.27,194.21,4.14152253]
[1760334068087,20.8,194.33,194.2,96.313208]
[1760334068088,5.14615067,194.32,194.25,4.14152253]
[1760334068386,0.68,194.31,194.25,4.14152253]
[1760334068584,0.68,194.3,194.25,4.14152253]
[1760334068783,0.68,194.29,194.25,4.14152253]
[1760334068964,0.68,194.33,194.28,4.14152253]
[1760334069164,0.68,194.32,194.27,4.14152253]
[1760334069478,0.10882545,194.29,194.27,4.14152253]
[1760334069987,0.10882545,194.29,194.26,4.14152253]
[1760334070483,0.10882545,194.29,194.26,9.28904853]
[1760334071303,0.10882545,194.29,194.27,4.14152253]
[1760334073479,0.10882545,194.29,194.27,9.28893618]
[1760334073681,0.10882545,194.29,194.27,89.68893618]
[1760334074688,0.0949262,194.31,194.3,80.19391822]
[1760334075193,0.0949262,194.31,194.3,85.05544075]
[1760334075571,0.8149262,194.31,194.3,80.19391822]
[1760334076294,0.0949262,194.31,194.3,80.19391822]
[1760334077388,0.0949262,194.31,194.3,90.20212114]
[1760334077572,0.0949262,194.31,194.3,89.48212114]
[1760334078478,0.8149262,194.31,194.3,80.19391822]
[1760334078995,5.96134172,194.31,194.28,80.19391822]
[1760334079166,0.72,194.3,194.23,80.19391822]
[1760334079372,0.72,194.29,194.23,84.33544075]
[1760334079595,0.72,194.29,194.22,89.4839961]
[1760334079894,0.72,194.28,194.22,85.34247357]
[1760334080192,0.72,194.27,194.22,85.34247357]
[1760334080391,38.90738052,194.31,194.22,85.34247357]
[1760334080694,0.72,194.26,194.22,85.34247357]
[1760334080892,5.14668039,194.3,194.23,4.14152253]
[1760334081070,26.04141314,194.31,194.25,4.14152253]
[1760334081276,0.72,194.3,194.24,4.14152253]
[1760334082084,0.72,194.3,194.23,4.14152253]
[1760334082468,5.14694528,194.29,194.24,4.14152253]
[1760334082692,5.86694528,194.29,194.24,4.14152253]
[1760334083400,0.72,194.28,194.22,80.19391822]
[1760334083587,0.72,194.27,194.22,80.19391822]
[1760334083781,0.72,194.26,194.22,80.19391822]
[1760334083975,0.72,194.26,194.21,89.48432958]
[1760334084175,0.72,194.26,194.21,9.29041136]
[1760334084679,0.72,194.26,194.21,89.48432958]
[1760334084879,0.72,194.26,194.22,4.14152253]
[1760334086593,0.72,194.26,194.22,9.2902269]
[1760334087600,0.72,194.26,194.22,7.79780508]
[1760334088494,0.72,194.26,194.23,2.64910071]
[1760334088701,5.8667663,194.3,194.24,3.36910071]
[1760334089000,5.8667663,194.3,194.25,2.64910071]
[1760334089200,0.72,194.29,194.24,80.91391822]
[1760334089499,0.10898316,194.25,194.24,80.19391822]
[1760334093833,0.10898316,194.25,194.24,87.99128911]
[1760334094110,0.10592557,194.26,194.24,88.60230595]
[1760334094407,0.10592557,194.26,194.25,2.64910071]
[1760334094699,0.10592557,194.26,194.25,83.45403577]
[1760334094899,0.10592557,194.26,194.25,88.60204091]
[1760334096705,0.10592557,194.26,194.25,99.47851612]
[1760334097505,0.10592557,194.26,194.25,233.57851612]
[1760334100011,0.10038614,194.3,194.29,79.68376011]
[1760334100311,0.10038614,194.3,194.29,82.33286082]
[1760334100999,0.82038614,194.3,194.29,79.68376011]
[1760334101711,0.10038614,194.3,194.29,84.83070539]
[1760334103706,5.94706653,194.3,194.29,79.68376011]
[1760334103922,0.80038614,194.3,194.25,84.83175863]
[1760334104086,0.7,194.29,194.25,79.68376011]
[1760334104406,0.7,194.28,194.25,84.83169576]
[1760334104713,5.24706975,194.3,194.26,2.64910071]
[1760334104714,0.10038614,194.3,194.26,2.64910071]
[1760334104885,0.10038614,194.3,194.26,3.32910071]
[1760334105086,0.79038614,194.3,194.26,2.64910071]
[1760334106206,0.10038614,194.3,194.27,2.64910071]
[1760334106714,0.10038614,194.3,194.28,3.32910071]
[1760334107008,0.10038614,194.3,194.29,2.64910071]
[1760334107214,0.10038614,194.3,194.29,82.33286082]
[1760334107395,0.10038614,194.3,194.29,79.68376011]
[1760334108115,0.10038614,194.3,194.29,84.83070539]
[1760334109489,0.11193405,194.3,194.29,99.03628131]
[1760334109694,0.11193405,194.3,194.29,233.13628131]
[1760334109896,0.11193405,194.3,194.29,153.4525212]
[1760334110108,0.11193405,194.3,194.29,233.8525212]
[1760334113205,0.11193405,194.3,194.29,236.50162191]
[1760334113602,0.10734976,194.31,194.3,10.87647521]
[1760334113791,0.10734976,194.31,194.3,16.85467663]
[1760334114294,0.10734976,194.31,194.3,231.35467663]
[1760334114613,0.10734976,194.31,194.3,236.50135702]
[1760334115219,0.09344111,194.32,194.31,10.87647521]
[1760334115511,0.09344111,194.32,194.31,14.20557592]
[1760334116111,0.10661628,194.34,194.33,10.87647521]
[1760334116328,0.10661628,194.34,194.33,147.62557592]
[1760334116618,0.10661628,194.34,194.33,233.74411202]
[1760334116808,0.11263772,194.39,194.33,254.54411202]
[1760334116996,0.11263772,194.39,194.36,2.64910071]
[1760334117489,0.11263772,194.39,194.36,3.32910071]
[1760334118899,0.11263772,194.39,194.36,8.47419229]
[1760334119295,0.11263772,194.39,194.36,254.54331774]
[1760334120719,0.80263772,194.39,194.36,230.41421703]
[1760334121022,0.80263772,194.39,194.36,233.06331774]
[1760334121233,0.11263772,194.39,194.36,233.74331774]
[1760334121408,0.79232406,194.37,194.36,230.41421703]
[1760334121724,0.10232406,194.37,194.36,233.06331774]
[1760334123804,5.1427102,194.45,194.33,79.97828243]
[1760334124004,20.8,194.42,194.33,79.97828243]
[1760334124302,0.69,194.41,194.33,82.62738314]
[1760334124504,0.69,194.4,194.35,2.64910071]
[1760334124812,0.69,194.39,194.34,2.64910071]
[1760334125117,0.69,194.38,194.34,2.64910071]
[1760334125425,0.69,194.37,194.34,2.64910071]
[1760334125605,0.69,194.37,194.34,83.04910071]
[1760334125801,0.69,194.37,194.35,2.64910071]
[1760334126800,0.69,194.37,194.36,2.64910071]
[1760334127620,0.69,194.41,194.36,2.64910071]
[1760334127833,0.69,194.41,194.4,2.64910071]
[1760334128014,0.69,194.43,194.4,2.64910071]
[1760334128320,0.1,194.46,194.42,2.64910071]
[1760334128529,0.79,194.46,194.44,2.64910071]
[1760334128731,0.79,194.46,194.44,83.04910071]
[1760334129126,0.1,194.46,194.45,2.64910071]
[1760334129628,0.89604677,194.46,194.45,2.64910071]
[1760334130230,0.20604677,194.46,194.45,2.64910071]
[1760334130831,0.89604677,194.46,194.45,2.64910071]
[1760334131123,0.20604677,194.46,194.45,7.79181091]
[1760334131936,0.20604677,194.46,194.45,88.19181091]
[1760334133113,0.20604677,194.46,194.45,99.74828612]
[1760334134326,0.10306842,194.48,194.47,79.98964337]
[1760334134519,0.10306842,194.48,194.47,82.63874408]
[1760334135511,0.10306842,194.48,194.47,87.78092539]
[1760334136734,0.10306842,194.48,194.47,98.6574006]
[1760334136911,0.10306842,194.48,194.47,99.3574006]
[1760334138033,0.10306842,194.48,194.47,98.6574006]
[1760334138250,0.10306842,194.48,194.47,96.00829989]
[1760334138432,0.78306842,194.48,194.47,79.98964337]
[1760334139918,5.92501814,194.48,194.42,79.98964337]
[1760334140133,0.68,194.47,194.42,79.98964337]
[1760334140317,0.68,194.46,194.42,79.98964337]
[1760334140645,0.68,194.45,194.42,79.98964337]
[1760334140936,0.68,194.44,194.42,79.98964337]
[1760334141141,20.8,194.46,194.42,79.98964337]
[1760334141336,0.68,194.45,194.42,79.98964337]
[1760334141529,0.68,194.44,194.42,79.98964337]
[1760334141732,0.68,194.44,194.42,82.63874408]
[1760334142246,25.94253025,194.46,194.42,79.98964337]
[1760334142543,0.68,194.43,194.42,79.98964337]
[1760334143617,0.68,194.46,194.42,85.13314712]
[1760334143818,0.68,194.46,194.42,85.83314712]
[1760334144014,0.68,194.45,194.42,85.13314712]
[1760334144245,0.68,194.44,194.42,84.63314712]
[1760334144546,0.68,194.47,194.42,84.63314712]
[1760334144723,0.68,194.46,194.42,84.63314712]
[1760334144919,0.68,194.45,194.42,84.63314712]
[1760334146323,0.10306842,194.48,194.44,2.64910071]
[1760334146836,0.78306842,194.48,194.44,82.13874408]
[1760334147015,0.78306842,194.48,194.44,82.83874408]
[1760334147224,0.78306842,194.48,194.45,2.64910071]
[1760334149240,0.1,194.49,194.47,2.64910071]
[1760334149414,0.1,194.49,194.48,2.64910071]
[1760334149620,0.20283828,194.49,194.48,4.12843805]
[1760334150525,0.20283828,194.49,194.48,15.70491326]
[1760334151230,0.20283828,194.49,194.48,20.84683016]
[1760334153442,1e-08,194.5,194.49,10.87647521]
[1760334153630,1e-08,194.5,194.49,19.83335131]
[1760334155645,1e-08,194.5,194.49,24.97500383]
[1760334155848,0.11166624,194.53,194.52,80.08024353]
[1760334156044,0.11166624,194.53,194.52,84.20868158]
[1760334157237,0.11166624,194.53,194.52,80.08024353]
[1760334157543,0.11166624,194.53,194.52,84.20868158]
[1760334157726,0.11166624,194.53,194.52,100.22601634]
[1760334159043,0.11166624,194.53,194.52,85.22110308]
[1760334159243,0.79166624,194.53,194.5,80.08024353]
[1760334159428,0.79166624,194.53,194.5,85.22160827]
[1760334160034,0.68,194.52,194.5,89.35004632]
[1760334160943,0.68,194.51,194.5,80.08024353]
[1760334165450,0.11166624,194.53,194.5,85.22161499]
[1760334165633,0.11166624,194.53,194.52,4.12843805]
[1760334166348,0.11166624,194.53,194.52,84.20868158]
[1760334167142,0.11166624,194.53,194.52,15.69491326]
[1760334167535,0.11166624,194.53,194.52,20.83577281]
[1760334169342,0.1,194.54,194.53,16.01707049]
[1760334169546,0.19408277,194.54,194.53,20.83550854]
[1760334170555,0.19408277,194.54,194.53,16.70707049]
[1760334170752,0.86408277,194.54,194.52,10.87647521]
[1760334171662,0.86408277,194.54,194.52,16.01721276]
[1760334171837,0.19408277,194.54,194.52,16.01721276]
[1760334172042,0.67,194.53,194.5,5.14138817]
[1760334172239,0.67,194.52,194.47,146.95485654]
[1760334172444,0.67,194.51,194.47,4.12843805]
[1760334172657,0.67,194.5,194.47,4.12843805]
[1760334173368,0.67,194.5,194.48,5.1419169]
[1760334173683,0.86408277,194.54,194.49,4.12843805]
[1760334173838,0.67,194.53,194.5,4.12843805]
[1760334174043,0.67,194.52,194.5,4.12843805]
[1760334174546,0.19408277,194.54,194.51,4.81843805]
[1760334174754,0.19408277,194.54,194.53,4.12843805]
[1760334175748,0.19408277,194.54,194.53,9.26903333]
[1760334180275,0.86408277,194.54,194.52,5.14084395]
[1760334181366,0.67,194.53,194.52,5.14084395]
[1760334181963,0.19408277,194.54,194.52,5.14084395]
[1760334182251,20.8,194.51,194.43,0.69]
[1760334182555,0.67,194.5,194.43,9.2715522]
[1760334182753,0.67,194.49,194.44,4.12843805]
[1760334182958,0.67,194.48,194.44,4.12843805]
[1760334183149,0.67,194.48,194.43,9.2715522]
[1760334183547,0.67,194.48,194.43,9.9615522]
[1760334183949,25.94130425,194.51,194.43,9.9615522]
[1760334184150,0.67,194.47,194.43,9.9615522]
[1760334184652,0.67,194.46,194.42,219.32372505]
[1760334184871,0.67,194.45,194.4,85.22405538]
[1760334185066,38.79411387,194.51,194.41,4.81843805]
[1760334185275,0.67,194.5,194.41,84.20868158]
[1760334185455,0.67,194.49,194.41,84.20868158]
[1760334185654,0.67,194.48,194.41,89.35222816]
[1760334186052,0.67,194.48,194.41,80.08024353]
[1760334186266,0.67,194.47,194.41,80.08024353]
[1760334186570,0.67,194.46,194.38,84.20868158]
[1760334186751,0.67,194.45,194.38,84.20868158]
[1760334186952,0.67,194.44,194.38,84.20868158]
[1760334187152,0.67,194.43,194.38,84.20868158]
[1760334187366,0.67,194.42,194.38,85.22469191]
[1760334187565,0.67,194.42,194.38,80.08024353]
[1760334188070,0.67,194.46,194.4,4.12843805]
[1760334188276,0.67,194.46,194.41,4.12843805]
[1760334188472,21.47,194.48,194.42,4.12843805]
[1760334188782,21.47,194.48,194.42,84.89868158]
[1760334188961,21.47,194.48,194.43,4.12843805]
[1760334189161,0.67,194.47,194.42,80.77024353]
[1760334189377,0.67,194.46,194.42,84.20868158]
[1760334189567,0.10519106,194.44,194.43,5.14323921]
[1760334189869,0.10519106,194.44,194.43,85.22348274]
[1760334190769,0.10519106,194.44,194.43,100.918396]
[1760334190955,0.10519106,194.44,194.43,235.018396]
[1760334191367,0.10788901,194.45,194.43,235.018396]